[Event "26th Abu Dhabi Master 2019"]
[Site "Abu Dhabi"]
[Date "2019.08.03"]
[Round "3.43"]
[White "Agmanov, Zhandos"]
[Black "Ashraf, Artin"]
[Result "1/2-1/2"]
[ECO "B13"]
[WhiteElo "2402"]
[BlackElo "2141"]
[Annotator "NA"]
[PlyCount "31"]
[EventDate "2019.08.02"]
[EventType "swiss"]
[EventCountry "UAE"]
[SourceTitle "playchess.com"]
[Source "ChessBase"]
[SourceQuality "1"]
[TimeControl "5400+30"]

1. e4 {[%emt 0:00:00]} c6 {[%emt 0:00:35]} 2. d4 {[%emt 0:00:00]} d5 {[%emt 0:00:11]} 3. exd5 {[%emt 0:00:00]} cxd5 {[%emt 0:00:33]} 4. Bd3 {[%emt 0:00:00]} Nf6 {[%emt 0:01:25]} 5. c3 {[%emt 0:00:50]} Bg4 {[%emt 0:00:56]} 6. Qb3 {[%emt 0:02:24]} Qc7 {[%emt 0:01:08]} 7. h3 {[%emt 0:02:17]} Bh5 {[%emt 0:00:46]} 8. Ne2 {[%emt 0:00:38]} e6 {[%emt 0:02:31]} 9. Bf4 {[%emt 0:00:40]} Bd6 {[%emt 0:00:43]} 10. Bxd6 {[%emt 0:02:19]} Qxd6 {[%emt 0:00:27]} 11. O-O {[%emt 0:17:31]} Nc6 {[%emt 0:13:21]} 12. Re1 {[%emt 0:01:04]} O-O {[%emt 0:08:46]} 13. Ng3 {[%emt 0:02:21]} Bg6 {[%emt 0:04:22]} 14. Bxg6 {[%emt 0:00:08]} hxg6 {[%emt 0:00:18]} 15. Nd2 {[%emt 0:00:01]} b5 {[%emt 0:00:39]} 16. a3 {[%emt 0:09:02]} 1/2-1/2

[Event "26th Abu Dhabi Master 2019"]
[Site "Abu Dhabi"]
[Date "2019.08.03"]
[Round "3.44"]
[White "Ilyasli, Ughur"]
[Black "Mendonca, Leon Luke"]
[Result "1-0"]
[ECO "B46"]
[WhiteElo "2104"]
[BlackElo "2401"]
[Annotator "ChessBase"]
[PlyCount "115"]
[EventDate "2019.08.02"]
[EventType "swiss"]
[EventCountry "UAE"]
[SourceTitle "playchess.com"]
[Source "ChessBase"]
[SourceQuality "1"]
[TimeControl "5400+30"]

1. e4 c5 2. Nf3 e6 3. d4 cxd4 4. Nxd4 Nc6 5. Nc3 a6 6. Be2 Nge7 7. Be3 Ng6 8. O-O Be7 9. Na4 O-O 10. Nxc6 bxc6 11. Bb6 Qe8 12. c4 d6 13. c5 d5 14. Qc2 a5 15. f4 Qd7 16. Rae1 Re8 17. Bd3 Ba6 18. Bxa6 Rxa6 19. f5 exf5 20. exf5 Nf8 21. Qd2 Raa8 22. b3 Qb7 23. Bxa5 Qb5 24. Bc3 Nd7 25. Rxe7 Rxe7 26. f6 gxf6 27. Rxf6 Qe2 28. Qxe2 Rxe2 29. Rxc6 Rxa2 30. Rd6 Nf8 31. c6 Ne6 32. Nb6 Rb8 33. Be5 Rxb6 34. c7 Rxd6 35. c8=Q+ Rd8 36. Qc3 Ra6 37. Bf6 Rda8 38. Qg3+ Kf8 39. Qh4 Kg8 40. Qg4+ Kf8 41. Qh5 Kg8 42. Qxd5 Rc8 43. h4 Rb6 44. Be5 Rd8 45. Qf3 Rb5 46. Qg3+ Kf8 47. Bd6+ Ke8 48. Ba3 Rf5 49. Qg8+ Kd7 50. Qxh7 Rf6 51. Bb2 Nf8 52. Qh5 Rc6 53. Qxf7+ Kc8 54. h5 Rc7 55. Qf5+ Kb7 56. h6 Rd2 57. Qf3+ Rc6 58. Qxf8 1-0

[Event "26th Abu Dhabi Master 2019"]
[Site "Abu Dhabi"]
[Date "2019.08.03"]
[Round "3.45"]
[White "Mahdian, Anousha"]
[Black "Soumya, Swaminathan"]
[Result "0-1"]
[ECO "A65"]
[WhiteElo "2118"]
[BlackElo "2402"]
[Annotator "NA"]
[PlyCount "76"]
[EventDate "2019.08.02"]
[EventType "swiss"]
[EventCountry "UAE"]
[SourceTitle "playchess.com"]
[Source "ChessBase"]
[SourceQuality "1"]
[TimeControl "5400+30"]

1. d4 {[%emt 0:05:19]} Nf6 {[%emt 0:00:00]} 2. c4 {[%emt 0:00:04]} c5 {[%emt 0:00:05]} 3. d5 {[%emt 0:00:04]} e6 {[%emt 0:00:29]} 4. Nc3 {[%emt 0:00:05]} exd5 {[%emt 0:00:04]} 5. cxd5 {[%emt 0:00:05]} d6 {[%emt 0:00:04]} 6. e4 {[%emt 0:00:04]} g6 {[%emt 0:00:13]} 7. f3 {[%emt 0:00:58]} Bg7 {[%emt 0:00:08]} 8. Bg5 {[%emt 0:00:04]} h6 {[%emt 0:00:16]} 9. Be3 {[%emt 0:00:05]} O-O {[%emt 0:00:37]} 10. Qd2 {[%emt 0:00:06]} Re8 {[%emt 0:01:44]} 11. Nge2 {[%emt 0:01:24]} Nbd7 {[%emt 0:00:53]} 12. a4 {[%emt 0:04:54]} Ne5 {[%emt 0:05:15]} 13. Nc1 {[%emt 0:00:55]} a6 {[%emt 0:03:22]} 14. Be2 {[%emt 0:00:29]} h5 {[%emt 0:02:04]} 15. h3 {[%emt 0:03:54]} Nh7 {[%emt 0:07:40]} 16. f4 {[%emt 0:03:53]} Nd7 {[%emt 0:00:10]} 17. O-O {[%emt 0:01:06]} Bxc3 {[%emt 0:01:59]} 18. bxc3 {[%emt 0:06:42]} Rxe4 {[%emt 0:01:55]} 19. f5 {[%emt 0:00:50]} Ne5 {[%emt 0:07:10]} 20. fxg6 {[%emt 0:03:32]} fxg6 {[%emt 0:00:22]} 21. Bh6 {[%emt 0:07:07]} Qe7 {[%emt 0:15:23]} 22. Qe1 {[%emt 0:15:56]} Bd7 {[%emt 0:06:08]} 23. Qg3 {[%emt 0:10:27]} h4 {[%emt 0:04:05]} 24. Qf2 {[%emt 0:02:47]} Bxa4 {[%emt 0:00:39]} 25. c4 {[%emt 0:05:18]} Bd7 {[%emt 0:02:05]} 26. Nb3 {[%emt 0:04:14]} Nf7 {[%emt 0:04:31]} 27. Bd3 {[%emt 0:00:02]} Nxh6 {[%emt 0:00:19]} 28. Bxe4 {[%emt 0:00:02]} Qxe4 {[%emt 0:00:10]} 29. Rae1 {[%emt 0:15:00]} Qxc4 {[%emt 0:04:07]} 30. Qb2 {[%emt 0:00:16]} Re8 {[%emt 0:05:43]} 31. Qb1 {[%emt 0:05:47]} Nf5 {[%emt 0:01:38]} 32. Rxe8+ {[%emt 0:02:17]} Bxe8 {[%emt 0:00:02]} 33. Rxf5 {[%emt 0:00:09]} gxf5 {[%emt 0:00:03]} 34. Qxf5 {[%emt 0:00:06]} Qxb3 {[%emt 0:01:21]} 35. Qe6+ {[%emt 0:00:13]} Bf7 {[%emt 0:00:10]} 36. Qc8+ {[%emt 0:00:14]} Nf8 {[%emt 0:00:35]} 37. Qg4+ {[%emt 0:00:07]} Ng6 {[%emt 0:00:09]} 38. Qc8+ {[%emt 0:00:08]} Kg7 {[%emt 0:00:04]} 0-1

[Event "26th Abu Dhabi Master 2019"]
[Site "Abu Dhabi"]
[Date "2019.08.03"]
[Round "3.46"]
[White "Rakesh Kumar Jena"]
[Black "Vatsal Singhania"]
[Result "1-0"]
[ECO "A28"]
[WhiteElo "2395"]
[BlackElo "2213"]
[Annotator "NA"]
[PlyCount "53"]
[EventDate "2019.08.02"]
[EventType "swiss"]
[EventCountry "UAE"]
[SourceTitle "playchess.com"]
[Source "ChessBase"]
[SourceQuality "1"]
[TimeControl "5400+30"]

1. c4 {[%emt 0:02:42]} e5 {[%emt 0:00:00]} 2. Nc3 {[%emt 0:00:06]} Nc6 {[%emt 0:00:09]} 3. Nf3 {[%emt 0:00:09]} Nf6 {[%emt 0:00:11]} 4. e4 {[%emt 0:00:04]} d6 {[%emt 0:02:05]} 5. h3 {[%emt 0:00:39]} g6 {[%emt 0:00:54]} 6. d3 {[%emt 0:12:46]} Bg7 {[%emt 0:00:11]} 7. Be3 {[%emt 0:00:04]} O-O {[%emt 0:05:46]} 8. Qd2 {[%emt 0:01:11]} Be6 {[%emt 0:01:01]} 9. O-O-O {[%emt 0:03:21]} Nd7 {[%emt 0:06:35]} 10. d4 {[%emt 0:07:18]} exd4 {[%emt 0:05:03]} 11. Nxd4 {[%emt 0:00:07]} Nxd4 {[%emt 0:00:31]} 12. Bxd4 {[%emt 0:00:02]} Bxd4 {[%emt 0:00:06]} 13. Qxd4 {[%emt 0:00:08]} Qg5+ {[%emt 0:00:06]} 14. Kb1 {[%emt 0:02:10]} Qc5 {[%emt 0:00:11]} 15. Qd2 {[%emt 0:06:54]} Bxc4 {[%emt 0:06:16]} 16. Bxc4 {[%emt 0:00:10]} Qxc4 {[%emt 0:00:04]} 17. h4 {[%emt 0:00:04]} Rae8 {[%emt 0:44:14]} 18. f3 {[%emt 0:05:55]} Nf6 {[%emt 0:06:45]} 19. Rc1 {[%emt 0:11:38]} Re5 {[%emt 0:14:15]} 20. Nd5 {[%emt 0:03:17]} Rxd5 {[%emt 0:00:07]} 21. exd5 {[%emt 0:00:06]} Qxd5 {[%emt 0:00:04]} 22. Rhd1 {[%emt 0:00:07]} c6 {[%emt 0:02:05]} 23. Qb4 {[%emt 0:00:11]} Qf5+ {[%emt 0:02:27]} 24. Ka1 {[%emt 0:00:12]} b6 {[%emt 0:01:30]} 25. Rxc6 {[%emt 0:00:23]} Nd5 {[%emt 0:00:28]} 26. Qd4 {[%emt 0:01:00]} Nf4 {[%emt 0:00:21]} 27. g4 {[%emt 0:00:40]} 1-0

[Event "26th Abu Dhabi Master 2019"]
[Site "Abu Dhabi"]
[Date "2019.08.03"]
[Round "3.48"]
[White "Manush Shah"]
[Black "Salonika, Saina"]
[Result "1/2-1/2"]
[ECO "A48"]
[WhiteElo "2373"]
[BlackElo "2127"]
[Annotator "NA"]
[PlyCount "73"]
[EventDate "2019.08.02"]
[EventType "swiss"]
[EventCountry "UAE"]
[SourceTitle "playchess.com"]
[Source "ChessBase"]
[SourceQuality "1"]
[TimeControl "5400+30"]

1. d4 {[%emt 0:00:33]} Nf6 {[%emt 0:00:00]} 2. Nf3 {[%emt 0:00:03]} g6 {[%emt 0:00:00]} 3. Nc3 {[%emt 0:00:08]} d5 {[%emt 0:00:00]} 4. Bf4 {[%emt 0:00:04]} Bg7 {[%emt 0:00:00]} 5. e3 {[%emt 0:00:04]} O-O {[%emt 0:00:00]} 6. Be2 {[%emt 0:00:02]} c6 {[%emt 0:00:03]} 7. h4 {[%emt 0:00:03]} Qa5 {[%emt 0:00:11]} 8. Nd2 {[%emt 0:00:07]} h5 {[%emt 0:00:21]} 9. O-O {[%emt 0:00:04]} Bf5 {[%emt 0:02:00]} 10. f3 {[%emt 0:02:22]} Qb6 {[%emt 0:03:39]} 11. Nb3 {[%emt 0:02:10]} Nbd7 {[%emt 0:01:06]} 12. g4 {[%emt 0:00:25]} Be6 {[%emt 0:14:56]} 13. Rf2 {[%emt 0:01:05]} Qd8 {[%emt 0:05:05]} 14. a4 {[%emt 0:00:52]} Rc8 {[%emt 0:02:12]} 15. a5 {[%emt 0:04:53]} a6 {[%emt 0:06:15]} 16. Na4 {[%emt 0:04:30]} hxg4 {[%emt 0:00:35]} 17. Nac5 {[%emt 0:10:35]} gxf3 {[%emt 0:00:54]} 18. Bxf3 {[%emt 0:00:28]} Bf5 {[%emt 0:16:12]} 19. Nxb7 {[%emt 0:01:51]} Qe8 {[%emt 0:00:04]} 20. N3c5 {[%emt 0:11:30]} Ra8 {[%emt 0:03:51]} 21. Qe2 {[%emt 0:09:34]} Ra7 {[%emt 0:03:59]} 22. Rg2 {[%emt 0:10:58]} Qc8 {[%emt 0:05:09]} 23. Ra3 {[%emt 0:07:42]} Rxb7 {[%emt 0:05:00]} 24. Nxb7 {[%emt 0:00:11]} Qxb7 {[%emt 0:00:07]} 25. Rb3 {[%emt 0:00:02]} Qa7 {[%emt 0:02:13]} 26. h5 {[%emt 0:01:28]} Re8 {[%emt 0:00:47]} 27. hxg6 {[%emt 0:01:00]} fxg6 {[%emt 0:00:13]} 28. Rh2 {[%emt 0:03:15]} e5 {[%emt 0:08:39]} 29. dxe5 {[%emt 0:00:21]} Nxe5 {[%emt 0:00:07]} 30. Rb6 {[%emt 0:01:23]} Nfd7 {[%emt 0:00:26]} 31. Rb3 {[%emt 0:03:08]} Bxc2 {[%emt 0:02:15]} 32. Ra3 {[%emt 0:00:22]} Qb7 {[%emt 0:02:32]} 33. Bg4 {[%emt 0:01:22]} Qxb2 {[%emt 0:01:46]} 34. Qxc2 {[%emt 0:00:56]} Qxc2 {[%emt 0:06:45]} 35. Rxc2 {[%emt 0:04:35]} Nxg4 {[%emt 0:00:07]} 36. Rxc6 {[%emt 0:00:02]} d4 {[%emt 0:01:34]} 37. Rxg6 {[%emt 0:02:55]} 1/2-1/2

[Event "26th Abu Dhabi Master 2019"]
[Site "Abu Dhabi"]
[Date "2019.08.03"]
[Round "3.49"]
[White "Ammar, Sedrani"]
[Black "Rathanvel, V S"]
[Result "0-1"]
[ECO "A45"]
[WhiteElo "2024"]
[BlackElo "2367"]
[Annotator "NA"]
[PlyCount "80"]
[EventDate "2019.08.02"]
[EventType "swiss"]
[EventCountry "UAE"]
[SourceTitle "playchess.com"]
[Source "ChessBase"]
[SourceQuality "1"]
[TimeControl "5400+30"]

1. d4 Nf6 2. Bg5 e6 3. e3 c5 4. c3 cxd4 5. exd4 Be7 6. Bd3 b6 7. Nd2 Bb7 8. Ngf3 d6 9. O-O Nbd7 10. Re1 O-O 11. Qe2 a6 12. Rad1 Re8 13. Bb1 Qc7 14. Qd3 Bf8 15. Nf1 e5 16. dxe5 dxe5 17. Qe2 g6 18. Ng3 Bg7 19. h4 e4 20. Nd2 b5 21. Ndxe4 Nxe4 22. Bxe4 Nc5 23. Qc2 Nxe4 24. Nxe4 h6 25. Bc1 Qe7 26. f3 Qxh4 27. Qf2 Qh5 28. Nd6 Rxe1+ 29. Qxe1 Bc6 30. Qe7 Rf8 31. Re1 Qd5 32. a3 a5 33. Be3 Qb3 34. Re2 b4 35. axb4 axb4 36. cxb4 Qxb4 37. Nf5 Qc4 38. Nxh6+ Kh7 39. Kf2 Bxh6 40. Bxh6 Re8 0-1

[Event "26th Abu Dhabi Master 2019"]
[Site "Abu Dhabi"]
[Date "2019.08.03"]
[Round "3.50"]
[White "Divya Deshmukh"]
[Black "Tarini Goyal"]
[Result "1-0"]
[ECO "D37"]
[WhiteElo "2373"]
[BlackElo "2038"]
[Annotator "ChessBase"]
[PlyCount "149"]
[EventDate "2019.08.02"]
[EventType "swiss"]
[EventCountry "UAE"]
[SourceTitle "playchess.com"]
[Source "ChessBase"]
[SourceQuality "1"]
[TimeControl "5400+30"]

1. d4 {[%emt 0:00:12]} d5 {[%emt 0:00:08]} 2. c4 {[%emt 0:00:07]} e6 {[%emt 0:00:04]} 3. Nc3 {[%emt 0:00:02]} Nf6 {[%emt 0:00:06]} 4. Nf3 {[%emt 0:00:09]} Be7 {[%emt 0:00:14]} 5. g3 {[%emt 0:00:09]} O-O {[%emt 0:00:16]} 6. Bg2 {[%emt 0:00:03]} dxc4 {[%emt 0:00:23]} 7. Ne5 {[%emt 0:00:36]} c5 {[%emt 0:00:22]} 8. dxc5 {[%emt 0:00:05]} Qxd1+ {[%emt 0:00:07]} 9. Nxd1 {[%emt 0:00:02]} Bxc5 {[%emt 0:00:14]} 10. Nc3 {[%emt 0:00:08]} Nc6 {[%emt 0:03:45]} 11. Nxc4 {[%emt 0:01:54]} Bd7 {[%emt 0:07:11]} 12. O-O {[%emt 0:03:09]} Rfd8 {[%emt 0:13:45]} 13. Bg5 {[%emt 0:05:08]} h6 {[%emt 0:04:51]} 14. Bf4 {[%emt 0:07:26]} Ne8 {[%emt 0:09:54]} 15. Rad1 {[%emt 0:04:27]} g5 {[%emt 0:01:50]} 16. Bc1 {[%emt 0:02:31]} Kf8 {[%emt 0:10:58]} 17. a3 {[%emt 0:08:39]} Be7 {[%emt 0:03:47]} 18. Rd3 {[%emt 0:01:14]} Nf6 {[%emt 0:08:31]} 19. b3 {[%emt 0:09:28]} Be8 {[%emt 0:01:52]} 20. Rfd1 {[%emt 0:01:43]} Rxd3 {[%emt 0:02:42]} 21. Rxd3 {[%emt 0:05:04]} Rd8 {[%emt 0:00:28]} 22. Rxd8 {[%emt 0:02:53]} Nxd8 {[%emt 0:00:08]} 23. b4 {[%emt 0:00:17]} Bc6 {[%emt 0:02:01]} 24. e4 {[%emt 0:08:37]} b6 {[%emt 0:01:27]} 25. Be3 {[%emt 0:01:17]} Nd7 {[%emt 0:01:27]} 26. f4 {[%emt 0:04:38]} f6 {[%emt 0:01:53]} 27. Kf2 {[%emt 0:01:41]} Nf7 {[%emt 0:07:40]} 28. Bh3 {[%emt 0:01:32]} Nd8 {[%emt 0:00:14]} 29. Ke1 {[%emt 0:00:14]} Ke8 {[%emt 0:00:52]} 30. Kd2 {[%emt 0:00:10]} h5 {[%emt 0:00:55]} 31. Bf1 {[%emt 0:01:20]} Nf7 {[%emt 0:01:36]} 32. Be2 {[%emt 0:04:38]} g4 {[%emt 0:00:53]} 33. Kc2 {[%emt 0:00:22]} Kd8 {[%emt 0:02:19]} 34. Nd2 {[%emt 0:01:34]} Nd6 {[%emt 0:00:59]} 35. Bd3 {[%emt 0:00:36]} Kc7 {[%emt 0:03:29]} 36. Nb3 {[%emt 0:00:42]} e5 {[%emt 0:01:29]} 37. f5 {[%emt 0:00:42]} Nf8 {[%emt 0:03:05]} 38. Nd2 {[%emt 0:01:35]} Bd8 {[%emt 0:03:01]} 39. Kb3 {[%emt 0:00:58]} Nd7 {[%emt 0:03:32]} 40. Nf1 {[%emt 0:01:01]} Nf8 {[%emt 0:00:17]} 41. a4 {[%emt 0:00:51]} Nh7 {[%emt 0:00:27]} 42. Bc1 {[%emt 0:01:03]} Nf7 {[%emt 0:00:21]} 43. Bc4 {[%emt 0:00:16]} Nhg5 {[%emt 0:00:59]} 44. Ne3 {[%emt 0:09:17]} Kd6 {[%emt 0:00:09]} 45. Bxf7 {[%emt 0:07:14]} Nxf7 {[%emt 0:00:06]} 46. Nc4+ {[%emt 0:00:22]} Kd7 {[%emt 0:00:45]} 47. Be3 {[%emt 0:00:10]} Nd6 {[%emt 0:00:32]} 48. Nd2 {[%emt 0:01:15]} a5 {[%emt 0:00:55]} 49. b5 {[%emt 0:01:24]} Bb7 {[%emt 0:00:25]} 50. Kc2 {[%emt 0:00:04]} Kc7 {[%emt 0:00:42]} 51. Kd3 {[%emt 0:00:07]} Kd7 {[%emt 0:00:32]} 52. Nd1 {[%emt 0:00:42]} Kc7 {[%emt 0:00:22]} 53. Nb2 {[%emt 0:00:01]} Kd7 {[%emt 0:00:39]} 54. Nbc4 {[%emt 0:00:15]} Nc8 {[%emt 0:00:07]} 55. Nb3 {[%emt 0:01:46]} Bc7 {[%emt 0:00:44]} 56. Ncxa5 {[%emt 0:02:18]} Bxe4+ 57. Kxe4 {[%emt 0:00:01]} bxa5 {[%emt 0:00:14]} 58. Nc5+ {[%emt 0:01:10]} Kd6 {[%emt 0:00:35]} 59. Nb7+ {[%emt 0:01:37]} Kd7 {[%emt 0:00:05]} 60. Nc5+ {[%emt 0:00:01]} Kd6 {[%emt 0:00:05]} 61. Ne6 {[%emt 0:00:07]} Bb6 {[%emt 0:01:09]} 62. Bd2 {[%emt 0:02:03]} Kd7 {[%emt 0:00:21]} 63. Ng7 {[%emt 0:00:35]} Nd6+ {[%emt 0:00:33]} 64. Kd5 {[%emt 0:00:00]} Bd8 {[%emt 0:01:03]} 65. Be3 {[%emt 0:00:24]} Nc8 {[%emt 0:01:07]} 66. Nxh5 {[%emt 0:00:18]} Ne7+ {[%emt 0:00:18]} 67. Ke4 {[%emt 0:00:01]} Nc8 {[%emt 0:00:37]} 68. Ng7 {[%emt 0:00:45]} Nb6 {[%emt 0:00:39]} 69. Bxb6 {[%emt 0:00:50]} Bxb6 {[%emt 0:00:01]} 70. Nh5 {[%emt 0:00:06]} Ke7 {[%emt 0:00:26]} 71. Kd5 {[%emt 0:00:09]} Bd4 {[%emt 0:01:09]} 72. Kc6 {[%emt 0:00:36]} e4 {[%emt 0:00:21]} 73. Nf4 {[%emt 0:00:01]} e3 {[%emt 0:00:13]} 74. b6 {[%emt 0:00:40]} Be5 {[%emt 0:00:09]} 75. Nd5+ {[%emt 0:00:18]} 1-0

[Event "26th Abu Dhabi Master 2019"]
[Site "Abu Dhabi"]
[Date "2019.08.03"]
[Round "3.52"]
[White "Kushagra Mohan"]
[Black "Nguyen, Anh Khoi"]
[Result "1-0"]
[ECO "B90"]
[WhiteElo "2250"]
[BlackElo "2516"]
[Annotator "ChessBase"]
[PlyCount "99"]
[EventDate "2019.08.02"]
[EventType "swiss"]
[EventCountry "UAE"]
[SourceTitle "playchess.com"]
[Source "ChessBase"]
[SourceQuality "1"]
[TimeControl "5400+30"]

1. e4 c5 2. Nf3 d6 3. d4 cxd4 4. Nxd4 Nf6 5. Nc3 a6 6. f3 e6 7. Be3 b5 8. Qd2 Nbd7 9. g4 h6 10. O-O-O b4 11. Nce2 Qc7 12. h4 d5 13. g5 hxg5 14. exd5 Nxd5 15. Bxg5 N7b6 16. Nf4 Bd6 17. Nxd5 Nxd5 18. Nf5 Be5 19. Ne3 Bb7 20. Nc4 Bf6 21. Bxf6 gxf6 22. Ne3 Qc5 23. Nxd5 Bxd5 24. Qd4 Rc8 25. Rh2 Qxd4 26. Rxd4 a5 27. f4 Ke7 28. b3 Rc5 29. h5 Rh6 30. Be2 e5 31. Rd3 Be4 32. Rd2 exf4 33. Rh4 f5 34. Rxf4 Kf6 35. Bd1 Ke5 36. Rf1 Rd5 37. Rxd5+ Bxd5 38. Kd2 f4 39. c4 Be4 40. Be2 f5 41. Ke1 Rh8 42. Kf2 Rg8 43. Rg1 Rxg1 44. Kxg1 Bb1 45. h6 Kf6 46. c5 Bxa2 47. Bc4 Bb1 48. c6 Be4 49. c7 Bb7 50. Be6 1-0

[Event "26th Abu Dhabi Master 2019"]
[Site "Abu Dhabi"]
[Date "2019.08.03"]
[Round "3.53"]
[White "Rajdeep Sarkar"]
[Black "Siva Mahadevan"]
[Result "0-1"]
[ECO "E15"]
[WhiteElo "2369"]
[BlackElo "2270"]
[Annotator "NA"]
[PlyCount "82"]
[EventDate "2019.08.02"]
[EventType "swiss"]
[EventCountry "UAE"]
[SourceTitle "playchess.com"]
[Source "ChessBase"]
[SourceQuality "1"]
[TimeControl "5400+30"]

1. d4 {[%emt 0:00:00]} Nf6 {[%emt 0:04:08]} 2. Nf3 {[%emt 0:00:00]} e6 {[%emt 0:00:19]} 3. c4 {[%emt 0:00:09]} b6 {[%emt 0:00:11]} 4. g3 {[%emt 0:00:54]} Ba6 {[%emt 0:00:14]} 5. b3 {[%emt 0:00:05]} b5 {[%emt 0:04:53]} 6. cxb5 {[%emt 0:09:39]} Bxb5 {[%emt 0:00:41]} 7. Bg2 {[%emt 0:00:05]} Bc6 {[%emt 0:01:35]} 8. O-O {[%emt 0:00:18]} a5 {[%emt 0:00:23]} 9. Nc3 {[%emt 0:04:37]} Bb4 {[%emt 0:00:55]} 10. Bd2 {[%emt 0:03:31]} Qc8 {[%emt 0:02:05]} 11. Ne5 {[%emt 0:11:17]} Bxg2 {[%emt 0:01:10]} 12. Kxg2 {[%emt 0:00:03]} O-O {[%emt 0:14:26]} 13. Na4 {[%emt 0:05:09]} d6 {[%emt 0:06:21]} 14. Nd3 {[%emt 0:02:22]} Nc6 {[%emt 0:01:42]} 15. Be3 {[%emt 0:09:05]} Ba3 {[%emt 0:12:17]} 16. f3 {[%emt 0:01:16]} Nd5 {[%emt 0:08:10]} 17. Bf2 {[%emt 0:00:13]} f5 {[%emt 0:00:23]} 18. e4 {[%emt 0:21:05]} fxe4 {[%emt 0:01:21]} 19. fxe4 {[%emt 0:00:01]} Nf6 {[%emt 0:02:45]} 20. Qe2 {[%emt 0:04:55]} Qb7 {[%emt 0:04:25]} 21. Kg1 {[%emt 0:02:19]} Nb4 {[%emt 0:07:38]} 22. Nxb4 {[%emt 0:08:30]} Nxe4 {[%emt 0:06:12]} 23. d5 {[%emt 0:10:33]} Qxb4 {[%emt 0:02:49]} 24. dxe6 {[%emt 0:01:38]} Ng5 {[%emt 0:04:30]} 25. e7 {[%emt 0:02:36]} Qb7 {[%emt 0:00:42]} 26. exf8=Q+ {[%emt 0:00:38]} Rxf8 {[%emt 0:00:02]} 27. h4 {[%emt 0:01:37]} Nf3+ {[%emt 0:00:07]} 28. Qxf3 {[%emt 0:00:13]} Qxf3 {[%emt 0:00:08]} 29. Rae1 {[%emt 0:00:25]} d5 {[%emt 0:01:01]} 30. Re3 {[%emt 0:00:58]} Qf5 {[%emt 0:00:13]} 31. Re2 {[%emt 0:00:28]} Bd6 {[%emt 0:00:36]} 32. Rfe1 {[%emt 0:00:44]} Qf3 {[%emt 0:00:22]} 33. Kh2 {[%emt 0:00:20]} Bb4 {[%emt 0:01:39]} 34. Bc5 {[%emt 0:00:26]} Bxe1 {[%emt 0:00:06]} 35. Rxe1 {[%emt 0:00:01]} Rd8 {[%emt 0:00:08]} 36. Bd4 {[%emt 0:00:43]} Qd3 {[%emt 0:00:12]} 37. Bf2 {[%emt 0:00:27]} Rf8 {[%emt 0:01:23]} 38. Kg1 {[%emt 0:00:06]} Qf3 {[%emt 0:00:05]} 39. Rf1 {[%emt 0:00:08]} d4 {[%emt 0:00:46]} 40. Nb2 {[%emt 0:00:08]} Qe2 {[%emt 0:00:47]} 41. Nc4 {[%emt 0:00:13]} d3 {[%emt 0:00:07]} 0-1

[Event "26th Abu Dhabi Master 2019"]
[Site "Abu Dhabi"]
[Date "2019.08.03"]
[Round "3.54"]
[White "Asaka, Samuel"]
[Black "Kulkarni, Rakesh"]
[Result "0-1"]
[ECO "A43"]
[WhiteElo "2201"]
[BlackElo "2360"]
[Annotator "NA"]
[PlyCount "50"]
[EventDate "2019.08.02"]
[EventType "swiss"]
[EventCountry "UAE"]
[SourceTitle "playchess.com"]
[Source "ChessBase"]
[SourceQuality "1"]
[TimeControl "5400+30"]

1. d4 c5 2. d5 Nf6 3. Nc3 e5 4. e4 d6 5. Nf3 a6 6. a4 g6 7. Be2 Bg7 8. O-O O-O 9. Nd2 Nbd7 10. Nc4 Ne8 11. a5 f5 12. f4 exf4 13. Bxf4 Ne5 14. Nxe5 Bxe5 15. Bxe5 dxe5 16. exf5 gxf5 17. Qe1 Qe7 18. Na4 Bd7 19. Nb6 Rd8 20. Nc4 Bb5 21. Ne3 Nd6 22. c4 Bd7 23. Bd3 f4 24. Nd1 e4 25. b3 Qg7 0-1

[Event "26th Abu Dhabi Master 2019"]
[Site "Abu Dhabi"]
[Date "2019.08.03"]
[Round "3.55"]
[White "Ajay Karthikeyan"]
[Black "Dixit, Nikhil"]
[Result "0-1"]
[ECO "A45"]
[WhiteElo "2216"]
[BlackElo "2318"]
[Annotator "NA"]
[PlyCount "82"]
[EventDate "2019.08.02"]
[EventType "swiss"]
[EventCountry "UAE"]
[SourceTitle "playchess.com"]
[Source "ChessBase"]
[SourceQuality "1"]
[TimeControl "5400+30"]

1. d4 {[%emt 0:05:50]} Nf6 {[%emt 0:00:00]} 2. Bf4 {[%emt 0:00:35]} g6 {[%emt 0:00:08]} 3. Nc3 {[%emt 0:00:02]} d5 {[%emt 0:00:51]} 4. e3 {[%emt 0:00:04]} Bg7 {[%emt 0:00:11]} 5. h4 {[%emt 0:00:01]} h6 {[%emt 0:01:29]} 6. Be2 {[%emt 0:01:03]} c6 {[%emt 0:00:50]} 7. Nf3 {[%emt 0:00:26]} b5 {[%emt 0:02:10]} 8. O-O {[%emt 0:02:23]} O-O {[%emt 0:03:27]} 9. Ne5 {[%emt 0:03:31]} Nfd7 {[%emt 0:06:30]} 10. Nd3 {[%emt 0:09:25]} a5 {[%emt 0:04:00]} 11. Bg3 {[%emt 0:03:01]} h5 {[%emt 0:12:06]} 12. Bf3 {[%emt 0:02:49]} Nf6 {[%emt 0:03:43]} 13. Re1 {[%emt 0:04:22]} Bf5 {[%emt 0:04:28]} 14. Nc5 {[%emt 0:05:48]} Na6 {[%emt 0:05:40]} 15. Nxa6 {[%emt 0:08:47]} Rxa6 {[%emt 0:02:00]} 16. Be5 {[%emt 0:00:03]} Ne4 {[%emt 0:08:21]} 17. Nxe4 {[%emt 0:03:30]} dxe4 {[%emt 0:03:32]} 18. Bxg7 {[%emt 0:00:13]} Kxg7 {[%emt 0:00:02]} 19. Be2 {[%emt 0:00:14]} e6 {[%emt 0:04:02]} 20. a4 {[%emt 0:03:41]} Qxh4 {[%emt 0:04:27]} 21. axb5 {[%emt 0:00:13]} cxb5 {[%emt 0:00:20]} 22. Bxb5 {[%emt 0:00:20]} Rb6 {[%emt 0:06:35]} 23. Rxa5 {[%emt 0:08:54]} Rfb8 {[%emt 0:05:23]} 24. c4 {[%emt 0:05:42]} Bg4 {[%emt 0:02:15]} 25. Re2 {[%emt 0:00:11]} Bf3 {[%emt 0:05:41]} 26. gxf3 {[%emt 0:12:28]} exf3 {[%emt 0:00:27]} 27. Rc2 {[%emt 0:00:12]} Qg4+ {[%emt 0:01:23]} 28. Kf1 {[%emt 0:01:11]} h4 {[%emt 0:00:44]} 29. Ke1 {[%emt 0:01:19]} h3 {[%emt 0:00:32]} 30. Kd2 {[%emt 0:00:33]} h2 {[%emt 0:04:20]} 31. Ra1 {[%emt 0:01:53]} e5 {[%emt 0:00:50]} 32. Kc3 {[%emt 0:05:11]} Rh8 {[%emt 0:00:28]} 33. Qh1 {[%emt 0:01:53]} exd4+ {[%emt 0:00:35]} 34. Kb3 {[%emt 0:05:40]} Qe6 {[%emt 0:02:56]} 35. Kb4 {[%emt 0:01:26]} Qe4 {[%emt 0:00:48]} 36. Rd2 {[%emt 0:02:47]} Rxb5+ {[%emt 0:00:38]} 37. Kxb5 {[%emt 0:00:10]} Rb8+ {[%emt 0:00:58]} 38. Kc5 {[%emt 0:00:03]} Rc8+ {[%emt 0:00:38]} 39. Kb6 {[%emt 0:00:35]} Qc6+ {[%emt 0:00:14]} 40. Ka5 {[%emt 0:00:02]} Ra8+ {[%emt 0:00:13]} 41. Kb4 {[%emt 0:00:05]} Qb6# {[%emt 0:00:11]} 0-1